fUSD/lending_fUSD_20260529
["ID","MTS","AMOUNT","RATE_DAILY","PERIOD"]
[423308688,1780048245000,-150.0,0.00014441,2]
[423308727,1780048245000,-150.0,0.00014525,2]
[423308751,1780048245000,-150.0,0.00014578,2]
[423308744,1780048245000,-150.0,0.00014565,2]
[423308741,1780048245000,-195.03198619,0.00014562,2]
[423308713,1780048245000,-185.20326433,0.00014487,10]
[423308749,1780048245000,-12914.30920231,0.00014577,2]
[423308746,1780048245000,-150.0,0.00014568,2]
[423308734,1780048245000,-150.0,0.00014533,2]
[423308729,1780048245000,-150.0,0.00014532,2]
[423308736,1780048245000,-150.0,0.00014537,2]
[423308731,1780048245000,-195.03198619,0.00014532,2]
[423308712,1780048245000,-500.0,0.00014487,10]
[423308738,1780048245000,-195.03198619,0.00014547,2]
[423308882,1780048246000,-25000.0,0.00014891,3]
[423308876,1780048246000,-150.0,0.00014882,2]
[423308870,1780048246000,-150.0,0.00014871,2]
[423308877,1780048246000,-500.0,0.00014882,2]
[423308861,1780048246000,-150.0,0.0001485,2]
[423308871,1780048246000,-25000.0,0.00014874,3]
[423308879,1780048246000,-25000.0,0.00014882,3]
[423308867,1780048246000,-195.03198619,0.00014865,2]
[423308859,1780048246000,-150.0,0.00014847,2]
[423308873,1780048246000,-195.03198619,0.0001488,2]
[423308887,1780048246000,-195.03198619,0.00014895,2]
[423308891,1780048246000,-724.77,0.00014899,2]
[423308883,1780048246000,-150.0,0.00014893,2]
[423308889,1780048246000,-10000.0,0.00014899,2]
[423308900,1780048246000,-637.37,0.00014899,2]
[423308893,1780048246000,-1519.08,0.00014899,2]
[423308898,1780048246000,-500.0,0.00014899,2]
[423308906,1780048246000,-500.0,0.00014899,2]
[423308896,1780048246000,-958.38,0.00014899,2]
[423308902,1780048246000,-812.78,0.00014899,2]
[423308904,1780048246000,-790.5,0.00014899,2]
[423308908,1780048246000,-25000.0,0.000149,3]
[423308865,1780048246000,-195.03198619,0.0001485,2]
[423308885,1780048246000,-150.0,0.00014895,2]
[423308863,1780048246000,-150.0,0.0001485,2]
[423308837,1780048246000,-150.0,0.00014799,2]
[423308855,1780048246000,-150.0,0.00014836,2]
[423308920,1780048246000,-617.382173,0.000149,2]
[423308812,1780048246000,-195.03198619,0.00014714,2]
[423308818,1780048246000,-195.03198619,0.00014744,2]
[423308808,1780048246000,-150.0,0.00014714,2]
[423308814,1780048246000,-195.03198619,0.00014729,2]
[423308810,1780048246000,-150.0,0.00014714,2]
[423308816,1780048246000,-150.0,0.00014742,2]
[423308820,1780048246000,-150.0,0.00014752,2]
[423308822,1780048246000,-150.0,0.00014756,2]
[423308832,1780048246000,-150.0,0.00014782,2]
[423308835,1780048246000,-195.03198619,0.0001479,2]
[423308828,1780048246000,-195.03198619,0.00014774,2]
[423308839,1780048246000,-1154673.5989088,0.000148,2]
[423308826,1780048246000,-195.03198619,0.00014759,2]
[423308824,1780048246000,-150.0,0.00014759,2]
[423308840,1780048246000,-3800.0,0.000148,5]
[423308830,1780048246000,-150.0,0.00014777,2]
[423308843,1780048246000,-150.0,0.00014805,2]
[423308847,1780048246000,-150.0,0.00014812,2]
[423308849,1780048246000,-2351.0,0.00014815,2]
[423308851,1780048246000,-195.03198619,0.0001482,2]
[423308853,1780048246000,-195.03198619,0.00014835,2]
[423308845,1780048246000,-195.03198619,0.00014805,2]
[423308857,1780048246000,-150.0,0.00014846,2]
[423308912,1780048246000,-566.33999559,0.000149,2]
[423308964,1780048246000,-230.04,0.00014985,2]
[423308926,1780048246000,-3800.0,0.000149,5]
[423308970,1780048246000,-217.23219505,0.00014986,2]
[423308977,1780048246000,-154.07871726,0.00014986,2]
[423308979,1780048246000,-227.52200583,0.00014986,2]
[423308980,1780048246000,-154.125904,0.00014986,2]
[423308974,1780048246000,-500.0,0.00014986,2]
[423308993,1780048246000,-800.0,0.0001499,3]
[423308987,1780048246000,-195.03198619,0.00014986,2]
[423308991,1780048246000,-800.0,0.0001499,2]
[423308984,1780048246000,-152.46068316,0.00014986,2]
[423308983,1780048246000,-153.65997093,0.00014986,2]
[423308989,1780048246000,-302.92733397,0.00014989,2]
[423308995,1780048246000,-151.0,0.00014997,2]
[423309001,1780048246000,-812.78,0.00014998,2]
[423308999,1780048246000,-637.37,0.00014998,2]
[423308997,1780048246000,-1617.54,0.00014998,2]
[423309003,1780048246000,-790.5,0.00014998,2]
[423309009,1780048246000,-407.36603384,0.00014999,2]
[423309011,1780048246000,-500.0,0.00014999,2]
[423309005,1780048246000,-500.0,0.00014998,2]
[423309013,1780048246000,-500.0,0.00014999,2]
[423309017,1780048246000,-500.0,0.00014999,2]
[423309019,1780048246000,-500.0,0.00014999,2]
[423308914,1780048246000,-617.382173,0.000149,2]
[423308968,1780048246000,-150.24304197,0.00014986,2]
[423308972,1780048246000,-276.9758734,0.00014986,2]
[423309007,1780048246000,-151.0,0.00014998,2]
[423309015,1780048246000,-494.05405209,0.00014999,2]
[423308966,1780048246000,-150.0,0.00014985,2]
[423308916,1780048246000,-617.382173,0.000149,2]
[423308918,1780048246000,-617.382173,0.000149,2]
[423308910,1780048246000,-1223.22723772,0.000149,2]
[423308924,1780048246000,-306.42650576,0.000149,2]
[423308930,1780048246000,-12914.30920231,0.000149,2]
[423308922,1780048246000,-151.0,0.000149,2]
[423308932,1780048246000,-1858.85337099,0.000149,2]
[423308934,1780048246000,-2799.52247302,0.000149,2]
[423308942,1780048246000,-150.0,0.00014917,2]
[423308948,1780048246000,-195.03198619,0.00014926,2]
[423308928,1780048246000,-15932.42774763,0.000149,2]
[423308945,1780048246000,-10000.0,0.00014919,2]
[423308936,1780048246000,-325.71888079,0.000149,2]
[423308960,1780048246000,-195.03198619,0.00014956,2]
[423308954,1780048246000,-150.0,0.00014941,2]
[423308956,1780048246000,-195.03198619,0.00014941,2]
[423308958,1780048246000,-150.0,0.00014951,2]
[423308949,1780048246000,-198.56,0.00014939,2]
[423308938,1780048246000,-1197.5624193,0.000149,2]
[423308944,1780048246000,-150.0,0.00014918,2]
[423308952,1780048246000,-150.0,0.00014939,2]
[423308940,1780048246000,-195.03198619,0.00014911,2]
[423308962,1780048246000,-195.03198619,0.00014971,2]
[423309065,1780048247000,-500.0,0.00014999,2]
[423309074,1780048247000,-500.0,0.00014999,2]
[423309082,1780048247000,-500.0,0.00014999,2]
[423309076,1780048247000,-500.0,0.00014999,2]
[423309072,1780048247000,-500.0,0.00014999,2]
[423309080,1780048247000,-500.0,0.00014999,2]
[423309078,1780048247000,-500.0,0.00014999,2]
[423309088,1780048247000,-1617.54,0.00014999,2]
[423309096,1780048247000,-1617.54,0.00014999,2]
[423309084,1780048247000,-1617.54,0.00014999,2]
[423309086,1780048247000,-1617.54,0.00014999,2]
[423309092,1780048247000,-1617.54,0.00014999,2]
[423309100,1780048247000,-1617.54,0.00014999,2]
[423309103,1780048247000,-1617.54,0.00014999,2]
[423309094,1780048247000,-1617.54,0.00014999,2]
[423309069,1780048247000,-500.0,0.00014999,2]
[423309106,1780048247000,-1617.54,0.00014999,2]
[423309090,1780048247000,-1617.54,0.00014999,2]
[423309060,1780048247000,-500.0,0.00014999,2]
[423309029,1780048247000,-500.0,0.00014999,2]
[423309062,1780048247000,-500.0,0.00014999,2]
[423309105,1780048247000,-1617.54,0.00014999,2]
[423309025,1780048247000,-500.0,0.00014999,2]
[423309022,1780048247000,-500.0,0.00014999,2]
[423309027,1780048247000,-500.0,0.00014999,2]
[423309036,1780048247000,-500.0,0.00014999,2]
[423309034,1780048247000,-500.0,0.00014999,2]
[423309031,1780048247000,-500.0,0.00014999,2]
[423309038,1780048247000,-500.0,0.00014999,2]
[423309067,1780048247000,-500.0,0.00014999,2]
[423309052,1780048247000,-377.70945128,0.00014999,2]
[423309054,1780048247000,-500.0,0.00014999,2]
[423309040,1780048247000,-500.0,0.00014999,2]
[423309044,1780048247000,-500.0,0.00014999,2]
[423309046,1780048247000,-500.0,0.00014999,2]
[423309048,1780048247000,-500.0,0.00014999,2]
[423309050,1780048247000,-500.0,0.00014999,2]
[423309058,1780048247000,-500.0,0.00014999,2]
[423309063,1780048247000,-500.0,0.00014999,2]
[423309057,1780048247000,-500.0,0.00014999,2]
[423309109,1780048247000,-1617.54,0.00014999,2]
[423309042,1780048247000,-500.0,0.00014999,2]
[423309112,1780048247000,-500.0,0.00014999,2]
[423309159,1780048247000,-863.47,0.00014999,2]
[423309155,1780048247000,-500.97558109,0.00014999,2]
[423309149,1780048247000,-724.77,0.00014999,2]
[423309163,1780048247000,-863.47,0.00014999,2]
[423309196,1780048247000,-863.47,0.00014999,2]
[423309169,1780048247000,-863.47,0.00014999,2]
[423309171,1780048247000,-863.47,0.00014999,2]
[423309180,1780048247000,-863.47,0.00014999,2]
[423309153,1780048247000,-724.94748951,0.00014999,2]
[423309178,1780048247000,-863.47,0.00014999,2]
[423309174,1780048247000,-863.47,0.00014999,2]
[423309182,1780048247000,-863.47,0.00014999,2]
[423309184,1780048247000,-863.47,0.00014999,2]
[423309194,1780048247000,-863.47,0.00014999,2]
[423309186,1780048247000,-863.47,0.00014999,2]
[423309190,1780048247000,-863.47,0.00014999,2]
[423309188,1780048247000,-863.47,0.00014999,2]
[423309123,1780048247000,-500.0,0.00014999,2]
[423309176,1780048247000,-863.47,0.00014999,2]
[423309165,1780048247000,-863.47,0.00014999,2]
[423309192,1780048247000,-151.0,0.00014999,2]
[423309161,1780048247000,-863.47,0.00014999,2]
[423309151,1780048247000,-724.77,0.00014999,2]
[423309115,1780048247000,-1617.54,0.00014999,2]
[423309125,1780048247000,-500.0,0.00014999,2]
[423309111,1780048247000,-1617.54,0.00014999,2]
[423309117,1780048247000,-500.0,0.00014999,2]
[423309121,1780048247000,-1617.6073129,0.00014999,2]
[423309128,1780048247000,-500.0,0.00014999,2]
[423309140,1780048247000,-724.77,0.00014999,2]
[423309130,1780048247000,-500.0,0.00014999,2]
[423309119,1780048247000,-1617.54,0.00014999,2]
[423309147,1780048247000,-724.77,0.00014999,2]
[423309136,1780048247000,-503.08602672,0.00014999,2]
[423309134,1780048247000,-500.0,0.00014999,2]
[423309142,1780048247000,-724.77,0.00014999,2]
[423309138,1780048247000,-724.77,0.00014999,2]
[423309145,1780048247000,-724.77,0.00014999,2]
[423309157,1780048247000,-863.47,0.00014999,2]
[423309132,1780048247000,-500.0,0.00014999,2]
[423309167,1780048247000,-863.47,0.00014999,2]
[423309232,1780048248000,-1519.23240084,0.00014999,2]
[423309240,1780048248000,-500.0,0.00014999,2]
[423309238,1780048248000,-500.0,0.00014999,2]
[423309242,1780048248000,-500.0,0.00014999,2]
[423309244,1780048248000,-500.0,0.00014999,2]
[423309249,1780048248000,-500.0,0.00014999,2]
[423309264,1780048248000,-500.0,0.00014999,2]
[423309251,1780048248000,-500.0,0.00014999,2]
[423309262,1780048248000,-500.0,0.00014999,2]
[423309253,1780048248000,-500.0,0.00014999,2]
[423309260,1780048248000,-500.0,0.00014999,2]
[423309258,1780048248000,-529.19931579,0.00014999,2]
[423309234,1780048248000,-500.0,0.00014999,2]
[423309256,1780048248000,-249.66568301,0.00014999,2]
[423309247,1780048248000,-500.0,0.00014999,2]
[423309228,1780048248000,-1519.08,0.00014999,2]
[423309223,1780048248000,-1519.08,0.00014999,2]
[423309226,1780048248000,-1519.08,0.00014999,2]
[423309274,1780048248000,-223.16,0.00014999,2]
[423309198,1780048248000,-863.47,0.00014999,2]
[423309200,1780048248000,-863.47,0.00014999,2]
[423309204,1780048248000,-863.6596255,0.00014999,2]
[423309202,1780048248000,-863.47,0.00014999,2]
[423309217,1780048248000,-1519.08,0.00014999,2]
[423309206,1780048248000,-151.0,0.00014999,2]
[423309230,1780048248000,-1519.08,0.00014999,2]
[423309219,1780048248000,-1519.08,0.00014999,2]
[423309214,1780048248000,-1519.08,0.00014999,2]
[423309210,1780048248000,-1519.08,0.00014999,2]
[423309208,1780048248000,-1519.08,0.00014999,2]
[423309212,1780048248000,-1519.08,0.00014999,2]
[423309225,1780048248000,-1519.08,0.00014999,2]
[423309227,1780048248000,-1519.08,0.00014999,2]
[423309236,1780048248000,-500.0,0.00014999,2]
[423309221,1780048248000,-1519.08,0.00014999,2]
[423309272,1780048248000,-500.0,0.00014999,2]
[423309282,1780048248000,-958.38,0.00014999,2]
[423309267,1780048248000,-500.0,0.00014999,2]
[423309320,1780048248000,-500.0,0.00014999,2]
[423309330,1780048248000,-637.37,0.00014999,2]
[423309332,1780048248000,-637.37,0.00014999,2]
[423309321,1780048248000,-500.0,0.00014999,2]
[423309323,1780048248000,-500.0,0.00014999,2]
[423309328,1780048248000,-637.37,0.00014999,2]
[423309326,1780048248000,-211.72522284,0.00014999,2]
[423309336,1780048248000,-637.40424159,0.00014999,2]
[423309339,1780048248000,-812.78,0.00014999,2]
[423309338,1780048248000,-812.78,0.00014999,2]
[423309344,1780048248000,-812.78863491,0.00014999,2]
[423309343,1780048248000,-812.78,0.00014999,2]
[423309341,1780048248000,-812.78,0.00014999,2]
[423309334,1780048248000,-637.37,0.00014999,2]
[423309269,1780048248000,-500.0,0.00014999,2]
[423309310,1780048248000,-500.0,0.00014999,2]
[423309313,1780048248000,-500.0,0.00014999,2]
[423309345,1780048248000,-790.5,0.00014999,2]
[423309318,1780048248000,-500.0,0.00014999,2]
[423309308,1780048248000,-500.0,0.00014999,2]
[423309277,1780048248000,-958.38,0.00014999,2]
[423309284,1780048248000,-958.38,0.00014999,2]
[423309294,1780048248000,-958.38,0.00014999,2]
[423309296,1780048248000,-958.38,0.00014999,2]
[423309299,1780048248000,-958.38,0.00014999,2]
[423309286,1780048248000,-958.38,0.00014999,2]
[423309302,1780048248000,-958.38,0.00014999,2]
[423309279,1780048248000,-958.38,0.00014999,2]
[423309288,1780048248000,-958.38,0.00014999,2]
[423309292,1780048248000,-958.38,0.00014999,2]
[423309298,1780048248000,-958.38,0.00014999,2]
[423309304,1780048248000,-958.56677457,0.00014999,2]
[423309316,1780048248000,-500.0,0.00014999,2]
[423309312,1780048248000,-500.0,0.00014999,2]
[423309290,1780048248000,-958.38,0.00014999,2]
[423309306,1780048248000,-500.0,0.00014999,2]
[423309374,1780048249000,-500.0,0.00014999,2]
[423309380,1780048249000,-500.0,0.00014999,2]
[423309378,1780048249000,-500.0,0.00014999,2]
[423309383,1780048249000,-500.0,0.00014999,2]
[423309385,1780048249000,-500.0,0.00014999,2]
[423309394,1780048249000,-500.0,0.00014999,2]
[423309392,1780048249000,-500.0,0.00014999,2]
[423309387,1780048249000,-500.0,0.00014999,2]
[423309390,1780048249000,-500.0,0.00014999,2]
[423309388,1780048249000,-500.0,0.00014999,2]
[423309398,1780048249000,-500.0,0.00014999,2]
[423309401,1780048249000,-500.0,0.00014999,2]
[423309407,1780048249000,-500.0,0.00014999,2]
[423309376,1780048249000,-500.0,0.00014999,2]
[423309396,1780048249000,-500.0,0.00014999,2]
[423309372,1780048249000,-500.0,0.00014999,2]
[423309353,1780048249000,-500.0,0.00014999,2]
[423309381,1780048249000,-500.0,0.00014999,2]
[423309403,1780048249000,-500.0,0.00014999,2]
[423309354,1780048249000,-500.0,0.00014999,2]
[423309347,1780048249000,-790.5,0.00014999,2]
[423309356,1780048249000,-500.0,0.00014999,2]
[423309358,1780048249000,-500.0,0.00014999,2]
[423309349,1780048249000,-790.5,0.00014999,2]
[423309370,1780048249000,-500.0,0.00014999,2]
[423309350,1780048249000,-790.5,0.00014999,2]
[423309359,1780048249000,-500.0,0.00014999,2]
[423309361,1780048249000,-500.0,0.00014999,2]
[423309363,1780048249000,-500.0,0.00014999,2]
[423309365,1780048249000,-500.0,0.00014999,2]
[423309366,1780048249000,-500.0,0.00014999,2]
[423309368,1780048249000,-500.0,0.00014999,2]
[423309352,1780048249000,-790.66918433,0.00014999,2]
[423309399,1780048249000,-500.0,0.00014999,2]
[423309464,1780048249000,-500.0,0.00014999,2]
[423309409,1780048249000,-500.0,0.00014999,2]
[423309440,1780048249000,-500.0,0.00014999,2]
[423309444,1780048249000,-500.0,0.00014999,2]
[423309438,1780048249000,-500.0,0.00014999,2]
[423309449,1780048249000,-500.0,0.00014999,2]
[423309451,1780048249000,-500.0,0.00014999,2]
[423309462,1780048249000,-500.0,0.00014999,2]
[423309442,1780048249000,-500.0,0.00014999,2]
[423309453,1780048249000,-500.0,0.00014999,2]
[423309458,1780048249000,-500.0,0.00014999,2]
[423309456,1780048249000,-500.0,0.00014999,2]
[423309455,1780048249000,-500.0,0.00014999,2]
[423309472,1780048249000,-500.0,0.00014999,2]
[423309469,1780048249000,-500.0,0.00014999,2]
[423309467,1780048249000,-500.0,0.00014999,2]
[423309460,1780048249000,-500.0,0.00014999,2]
[423309447,1780048249000,-500.0,0.00014999,2]
[423309405,1780048249000,-500.0,0.00014999,2]
[423309427,1780048249000,-500.0,0.00014999,2]
[423309436,1780048249000,-500.0,0.00014999,2]
[423309412,1780048249000,-500.0,0.00014999,2]
[423309414,1780048249000,-500.0,0.00014999,2]
[423309418,1780048249000,-500.0,0.00014999,2]
[423309415,1780048249000,-500.0,0.00014999,2]
[423309410,1780048249000,-500.0,0.00014999,2]
[423309417,1780048249000,-500.0,0.00014999,2]
[423309416,1780048249000,-500.0,0.00014999,2]
[423309423,1780048249000,-500.0,0.00014999,2]
[423309421,1780048249000,-500.0,0.00014999,2]
[423309429,1780048249000,-500.0,0.00014999,2]
[423309434,1780048249000,-500.0,0.00014999,2]
[423309425,1780048249000,-500.0,0.00014999,2]
[423309420,1780048249000,-500.0,0.00014999,2]
[423309419,1780048249000,-500.0,0.00014999,2]
[423309432,1780048249000,-500.0,0.00014999,2]
[423309497,1780048250000,-165.86041902,0.00014999,2]
[423309493,1780048250000,-500.0,0.00014999,2]
[423309490,1780048250000,-500.0,0.00014999,2]
[423309484,1780048250000,-500.0,0.00014999,2]
[423309486,1780048250000,-500.0,0.00014999,2]
[423309480,1780048250000,-500.0,0.00014999,2]
[423309476,1780048250000,-500.0,0.00014999,2]
[423309477,1780048250000,-500.0,0.00014999,2]
[423309474,1780048250000,-500.0,0.00014999,2]
[423309491,1780048250000,-500.0,0.00014999,2]
[423309481,1780048250000,-500.0,0.00014999,2]
[423309495,1780048250000,-500.0,0.00014999,2]
[423309488,1780048250000,-500.0,0.00014999,2]
[423309500,1780048250000,-151.0,0.00014999,2]
[423309502,1780048250000,-500.0,0.00014999,2]
[423309523,1780048250000,-300.0,0.00014999,2]
[423309517,1780048250000,-300.0,0.00014999,2]
[423309519,1780048250000,-310.00034415,0.00014999,2]
[423309521,1780048250000,-300.0,0.00014999,2]
[423309529,1780048250000,-1239543.40455952,0.00015,2]
[423309512,1780048250000,-300.0,0.00014999,2]
[423309527,1780048250000,-823.43,0.00015,2]
[423309525,1780048250000,-979.73,0.00015,2]
[423309508,1780048250000,-500.0,0.00014999,2]
[423309510,1780048250000,-168.2651148,0.00014999,2]
[423309515,1780048250000,-300.0,0.00014999,2]
[423309505,1780048250000,-500.0,0.00014999,2]
[423309733,1780048252000,-1872.89034925,0.00015,2]
[423309729,1780048252000,-367.15438748,0.00015,2]
[423309783,1780048253000,-29592.28046958,0.000149,2]
[423309784,1780048253000,-3334405.2695604,0.00015,2]
[423309785,1780048254000,-14328.9188888,0.00012273,2]
[423309786,1780048254000,-1865.53076366,0.00013147,2]
[423309787,1780048254000,-4214.138841,0.00013147,2]
[423309789,1780048261000,152.0,0.00011423,7]
[423309788,1780048261000,152.0,0.00011423,7]
[423309790,1780048264000,152.0,0.00026866,120]
[423309791,1780048298000,200.0,0.000119,4]
[423309793,1780048363000,500.0,0.000119,4]
[423309794,1780048364000,215.5484138,0.00011675,2]
[423309795,1780048434000,150.0,0.00018084,120]
[423309798,1780048459000,247.44323952,0.00011908,7]
[423309797,1780048459000,247.44323952,0.00011675,7]
[423309796,1780048459000,-209.09056759,0.00011675,2]
[423309799,1780048511000,-2000.0,0.00011733,2]
[423309800,1780048539000,-622.29207534,0.00011733,2]
[423309801,1780048564000,152.0,0.0001142,7]
[423309802,1780048565000,152.0,0.00026734,120]
[423309805,1780048715000,1089.96619432,0.00011832,3]
[423309806,1780048721000,1092.26222106,0.00011832,3]
[423309807,1780048747000,1483.53,0.00027573,120]
[423309810,1780048857000,152.0,0.00011608,7]
[423309811,1780048858000,152.0,0.00011608,7]
[423309812,1780048929000,500.000001,0.00028,120]
[423309813,1780049047000,-1632.62085422,0.00011733,2]
[423309814,1780049072000,-500.0,0.00011733,2]
[423309815,1780049100000,-431.23146498,0.00011733,2]
[423309816,1780049128000,-431.23146498,0.00011733,2]
[423309817,1780049156000,-500.0,0.00011733,2]
[423309819,1780049184000,152.0,0.00011594,7]
[423309818,1780049184000,-500.0,0.00011733,2]
[423309820,1780049212000,-500.0,0.00011733,2]
[423309821,1780049238000,-349.13,0.00011733,2]
[423309822,1780049240000,900.0,0.000117,4]
[423309824,1780049241000,2800.0,0.000119,4]
[423309823,1780049241000,1900.0,0.000118,4]
[423309825,1780049267000,-349.13,0.00011733,2]
[423309827,1780049267000,-38.64373621,0.00011733,2]
[423309826,1780049267000,-349.6687,0.00011733,2]
[423309828,1780049292000,-500.0,0.00011733,2]
[423309829,1780049341000,1000.0,0.0002808,120]
[423309830,1780049430000,150.0,0.00013461,120]
[423309833,1780049431000,-120.44220195,0.0001163,2]
[423309832,1780049431000,-151.46366699,0.00011623,2]
[423309834,1780049431000,-30.55779805,0.0001163,2]
[423309835,1780049431000,-72370.54965867,0.00011633,2]
[423309836,1780049431000,-439.60436401,0.00011633,2]
[423309843,1780049431000,-811.50471421,0.00011633,2]
[423309837,1780049431000,-491621.68170426,0.00011633,2]
[423309840,1780049431000,-253.46543089,0.00011633,2]
[423309841,1780049431000,-683.18712388,0.00011633,2]
[423309839,1780049431000,-12826.71687118,0.00011633,2]
[423309842,1780049431000,-4885.25459731,0.00011633,2]
[423309838,1780049431000,-24442.38117908,0.00011633,2]
[423309883,1780049437000,-867.04626424,0.00011633,2]
[423309881,1780049437000,-535.41792625,0.00011633,2]
[423309882,1780049437000,-713.71647197,0.00011633,2]
[423309884,1780049437000,-549.02615776,0.00011633,2]
[423309885,1780049437000,-6674.93093468,0.00011633,2]
[423309887,1780049437000,-10391.57037895,0.00011633,2]
[423309886,1780049437000,-1801.85079663,0.00011633,2]
[423309918,1780049438000,-1200.0,0.00012406,2]
[423309917,1780049438000,-6069.92313682,0.000124,2]
[423309919,1780049438000,-1200.0,0.00012406,2]
[423309920,1780049438000,-300.0,0.00012406,2]
[423309921,1780049438000,-300.0,0.00012406,2]
[423309922,1780049438000,-500.0,0.00012406,2]
[423309923,1780049438000,-500.0,0.00012406,2]
[423309924,1780049438000,-166.64990904,0.00012406,2]
[423309929,1780049438000,-500.0,0.00012406,2]
[423309925,1780049438000,-500.0,0.00012406,2]
[423309927,1780049438000,-188.86862148,0.00012406,2]
[423309926,1780049438000,-500.0,0.00012406,2]
[423309928,1780049438000,-500.0,0.00012406,2]
[423309930,1780049438000,-239.47626604,0.00012406,2]
[423309940,1780049438000,-500.0,0.00012406,2]
[423309933,1780049438000,-500.0,0.00012406,2]
[423309932,1780049438000,-297.13195732,0.00012406,2]
[423309935,1780049438000,-500.0,0.00012406,2]
[423309936,1780049438000,-500.0,0.00012406,2]
[423309934,1780049438000,-500.0,0.00012406,2]
[423309938,1780049438000,-500.0,0.00012406,2]
[423309939,1780049438000,-500.0,0.00012406,2]
[423309942,1780049438000,-500.0,0.00012406,2]
[423309937,1780049438000,-500.0,0.00012406,2]
[423309915,1780049438000,-1776.0,0.00012384,2]
[423309916,1780049438000,-6276.485,0.00012384,2]
[423309898,1780049438000,-2314.6155,0.00011733,2]
[423309914,1780049438000,-215.5484138,0.00012315,2]
[423309889,1780049438000,-1869574.59870901,0.00011633,2]
[423309888,1780049438000,-557.49671702,0.00011633,2]
[423309890,1780049438000,-8192.69079491,0.00011633,2]
[423309892,1780049438000,-217.14592054,0.00011633,2]
[423309894,1780049438000,-162.00639556,0.0001173,2]
[423309893,1780049438000,-1000.0,0.00011658,2]
[423309896,1780049438000,-2500.0,0.00011733,2]
[423309891,1780049438000,-1866.34831536,0.00011633,2]
[423309895,1780049438000,-49483.2483,0.00011733,2]
[423309897,1780049438000,-986851.1989,0.00011733,2]
[423309901,1780049438000,-745.476677,0.00011806,2]
[423309913,1780049438000,-166.44,0.00012303,2]
[423309899,1780049438000,-8776.15711332,0.00011733,2]
[423309902,1780049438000,-151.0,0.0001183,2]
[423309904,1780049438000,-33218.9209,0.00011833,2]
[423309905,1780049438000,-2000.0,0.00011833,2]
[423309906,1780049438000,-602.12691317,0.00011906,2]
[423309903,1780049438000,-150.0,0.00011832,2]
[423309907,1780049438000,-150.0,0.00011938,2]
[423309909,1780049438000,-8776.15711332,0.00012085,2]
[423309908,1780049438000,-150.0,0.00011938,2]
[423309910,1780049438000,-8192.69079487,0.000121,2]
[423309911,1780049438000,-170.99392172,0.00012174,2]
[423309912,1780049438000,-247.44323952,0.00012259,7]
[423309900,1780049438000,-651.81325383,0.00011798,2]
[423309941,1780049438000,-500.0,0.00012406,2]
[423309931,1780049438000,-467.20855823,0.00012406,2]
[423309945,1780049438000,-679.84901081,0.00012406,2]
[423309978,1780049438000,-183.9406873,0.00013165,7]
[423309977,1780049438000,-8776.15711332,0.00013141,2]
[423309979,1780049438000,-2013.99,0.00013233,2]
[423309980,1780049438000,-500.0,0.00013234,2]
[423309982,1780049438000,-217.14592052,0.00013267,2]
[423309981,1780049438000,-1866.34831534,0.00013267,2]